bitfinex/quotes_ETHUSD_20250708
["timestamp","ask_amount","ask_price","bid_price","bid_amount"]
[1751969468578,1e-08,2557.8,2557.7,12.81060881]
[1751969468778,0.002,2557.9,2557.7,12.81060881]
[1751969468779,0.0346872,2558.3,2558.2,4.67899851]
[1751969468948,0.0346872,2558.3,2558.2,12.23128849]
[1751969469150,0.0346872,2558.3,2558.2,13.65148573]
[1751969471459,0.0346872,2558.3,2558.2,14.20148573]
[1751969471688,0.0346872,2558.3,2558.2,6.88348573]
[1751969471853,0.0346872,2558.3,2558.2,10.00119851]
[1751969473580,0.0346872,2558.3,2558.2,11.42719851]
[1751969477191,0.0346872,2558.3,2558.2,11.42619851]
[1751969477753,0.0346872,2558.3,2558.2,12.18109851]
[1751969487663,0.0346872,2558.3,2558.2,12.73109851]
[1751969487970,0.0346872,2558.3,2558.2,14.39512024]
[1751969495919,0.0366872,2558.3,2558.2,14.39512024]
[1751969498520,1e-08,2558.3,2558.2,24.39512024]
[1751969501320,1e-08,2558.3,2558.2,27.89621016]
[1751969502211,1e-08,2558.3,2558.2,27.89521016]
[1751969503228,1e-08,2558.3,2558.2,27.70001016]
[1751969503399,1e-08,2558.3,2558.2,24.19892024]
[1751969503602,1e-08,2558.8,2558.7,5.28593465]
[1751969503803,1e-08,2558.8,2558.7,12.13744581]
[1751969503999,1e-08,2558.8,2558.7,12.09836347]
[1751969505208,0.0430479,2559.3,2559.2,3.90747108]
[1751969505523,0.0430479,2559.3,2559.2,11.22947108]
[1751969507623,0.0430479,2559.3,2559.2,12.74317722]
[1751969509891,0.0430479,2559.3,2559.2,13.51017722]
[1751969510097,0.0430479,2559.3,2559.2,14.06017722]
[1751969513243,0.0430479,2559.3,2559.2,5.61637722]
[1751969513458,0.0430479,2559.3,2559.2,0.1952]
[1751969513954,0.0430479,2559.3,2558.7,3.90821426]
[1751969514102,0.0430479,2559.3,2559.0,0.1952]
[1751969514303,0.0430479,2559.3,2559.1,5.897]
[1751969515316,0.0430479,2559.3,2559.1,9.80457831]
[1751969515623,0.0430479,2559.3,2559.1,9.80454866]
[1751969515825,0.0430479,2559.3,2559.2,0.1952]
[1751969520850,0.0450479,2559.3,2559.2,6.0922]
[1751969530435,0.0450479,2559.3,2559.2,9.99967108]
[1751969530668,0.0450479,2559.3,2559.2,6.0922]
[1751969537358,0.0450479,2559.3,2559.2,9.99967108]
[1751969538751,0.0450479,2559.3,2559.2,6.0922]
[1751969539844,0.0450479,2559.3,2559.2,9.99967108]
[1751969541162,0.0450479,2559.3,2559.2,6.0922]
[1751969542259,0.0450479,2559.3,2559.2,9.99967108]
[1751969542853,0.0450479,2559.3,2559.2,6.0922]
[1751969544647,0.0450479,2559.3,2559.2,0.1952]
[1751969544862,0.0450479,2559.3,2559.2,6.0882]
[1751969557373,0.0450479,2559.3,2559.2,0.1952]
[1751969557573,0.0450479,2559.3,2559.2,6.0862]
[1751969557871,0.0450479,2559.3,2559.2,0.1952]
[1751969558194,0.0450479,2559.3,2559.2,6.0862]
[1751969565983,0.0450479,2559.3,2559.2,0.1952]
[1751969566184,0.0450479,2559.3,2559.2,6.0842]
[1751969576816,0.0450479,2559.3,2559.2,0.1952]
[1751969577107,4.10267695,2559.2,2559.1,5.889]
[1751969577307,4.90817483,2559.2,2558.9,0.001]
[1751969577610,4.90817483,2559.2,2559.0,5.889]
[1751969577611,0.1952,2559.1,2559.0,5.889]
[1751969577797,0.1952,2559.1,2558.9,0.001]
[1751969578001,0.1952,2559.1,2559.0,5.889]
[1751969582206,0.1952,2559.1,2558.9,5.891]
[1751969582411,0.83117125,2559.1,2558.9,5.891]
[1751969583594,0.1952,2559.1,2558.9,5.891]
[1751969589303,0.0450479,2559.3,2558.9,9.99404995]
[1751969590405,0.0450479,2559.3,2559.0,3.90772496]
[1751969591439,0.0450479,2559.3,2558.9,6.0862]
[1751969591723,0.0450479,2559.3,2559.2,0.1952]
[1751969592726,0.0450479,2559.3,2558.9,0.001]
[1751969593040,11.77600506,2559.3,2558.9,5.891]
[1751969593245,0.2402479,2559.3,2558.9,5.891]
[1751969596115,0.2402479,2559.3,2558.9,9.79889457]
[1751969596334,0.2402479,2559.3,2558.9,5.891]
[1751969596943,0.2402479,2559.3,2558.9,9.79884707]
[1751969598755,0.2402479,2559.3,2558.9,5.891]
[1751969598949,1.40483027,2559.3,2558.9,5.891]
[1751969603144,11.40483027,2559.3,2558.9,5.891]
[1751969603459,1.40483027,2559.3,2558.9,5.891]
[1751969606934,0.2402479,2559.3,2558.9,5.891]
[1751969607136,0.2402479,2559.3,2558.9,9.79891307]
[1751969607564,0.2402479,2559.3,2558.9,5.891]
[1751969607732,0.0450479,2559.3,2558.9,5.891]
[1751969608058,0.0450479,2559.3,2558.9,9.99405491]
[1751969608230,0.0450479,2559.3,2559.0,1.83140549]
[1751969608431,0.0450479,2559.3,2559.1,0.1952]
[1751969610267,0.0450479,2559.3,2559.2,5.89]
[1751969614976,0.0450479,2559.3,2559.1,0.1952]
[1751969615150,0.0450479,2559.3,2559.2,5.89]
[1751969615841,0.0450479,2559.3,2559.1,0.1952]
[1751969616041,0.0450479,2559.3,2559.2,5.89]
[1751969616373,0.0450479,2559.3,2559.1,0.1952]
[1751969616573,0.0450479,2559.3,2559.2,5.89]
[1751969623268,0.0450479,2559.3,2559.2,9.79747108]
[1751969625081,0.0450479,2559.3,2559.2,11.27069693]
[1751969625283,0.0450479,2559.3,2559.2,12.24919693]
[1751969630482,0.0450479,2559.3,2559.2,2.45172585]
[1751969630780,0.0450479,2559.3,2559.2,11.41767108]
[1751969631763,0.0450479,2559.3,2559.2,4.10267108]
[1751969631964,0.0450479,2559.3,2559.2,9.99167108]
[1751969638906,0.0450479,2559.3,2559.2,10.77257108]
[1751969639266,0.0450479,2559.3,2559.2,12.38318992]
[1751969641405,0.0450479,2559.3,2559.2,12.93318992]
[1751969641735,1e-08,2559.3,2559.2,22.93318992]
[1751969642016,0.0430479,2559.8,2559.7,4.65980781]
[1751969642179,0.0430479,2559.8,2559.7,12.17000781]
[1751969642377,0.0430479,2559.8,2559.7,13.49302233]
[1751969642608,0.0430479,2559.8,2559.7,6.17802233]
[1751969642830,0.0430479,2559.8,2559.7,13.49402233]
[1751969644905,0.0430479,2559.8,2559.7,13.49902233]
[1751969650329,0.0450479,2559.8,2559.7,13.49902233]
[1751969655200,0.0450479,2559.8,2559.7,13.49802233]
[1751969665857,0.0450479,2559.8,2559.7,14.04502233]
[1751969669866,0.0450479,2559.8,2559.7,13.49502233]
[1751969670664,0.0450479,2559.8,2559.7,5.42492233]
[1751969670856,0.0450479,2559.8,2559.7,11.31292233]
[1751969675279,0.0450479,2559.8,2559.7,1.51821452]
[1751969675586,0.0450479,2559.8,2559.7,9.99690781]
[1751969677775,0.0450479,2559.8,2559.7,6.0902]
[1751969678291,0.0450479,2559.8,2559.7,9.99690781]
[1751969678489,0.0450479,2559.8,2559.7,0.1952]
[1751969678691,0.0450479,2559.8,2559.7,6.0902]
[1751969679389,0.0450479,2559.8,2559.7,6.0912]
[1751969679887,0.0450479,2559.8,2559.7,0.1952]
[1751969680090,0.0450479,2559.8,2559.7,6.0912]
[1751969681574,0.0450479,2559.8,2559.7,0.1952]
[1751969681796,0.0450479,2559.8,2559.7,5.896]
[1751969682306,0.45971423,2559.8,2559.5,0.1952]
[1751969682500,0.65491423,2559.8,2559.6,5.896]
[1751969682703,0.65491423,2559.8,2559.7,5.896]
[1751969683210,0.65491423,2559.8,2559.3,0.1952]
[1751969683497,0.65491423,2559.8,2559.3,5.896]
[1751969683498,0.1952,2559.5,2559.3,5.896]
[1751969684294,0.1952,2559.5,2559.1,0.1962]
[1751969684483,0.1952,2559.5,2559.2,5.896]
[1751969693004,0.1952,2559.5,2559.2,9.8033684]
[1751969694530,0.1952,2559.5,2559.3,3.90722391]
[1751969694684,0.1952,2559.5,2559.3,3.90723131]
[1751969695085,0.1952,2559.5,2559.4,3.90716574]
[1751969695381,0.0450479,2559.8,2559.4,3.90716574]
[1751969695382,0.2402479,2559.8,2559.4,3.90716574]
[1751969695581,0.2402479,2559.8,2559.4,9.80416574]
[1751969696420,0.0450479,2559.8,2559.4,9.804089]
[1751969696587,0.0450479,2559.8,2559.5,0.1952]
[1751969701402,1.45969921,2559.8,2559.5,0.1952]
[1751969701592,0.0450479,2559.8,2559.5,4.10210875]
[1751969701815,0.0450479,2559.8,2559.6,3.90683525]
[1751969701998,0.0450479,2559.8,2559.7,3.90670781]
[1751969704006,0.0450479,2559.8,2559.7,9.80270781]
[1751969704208,0.0450479,2559.8,2559.7,10.61010781]
[1751969704523,0.0450479,2559.8,2559.7,12.08132212]
[1751969722140,0.0450479,2559.8,2559.7,12.63132212]
[1751969730639,0.04430712,2560.3,2560.2,3.90594484]
[1751969730945,0.04430712,2560.3,2560.2,10.03020428]
[1751969731239,0.04430712,2560.3,2560.2,11.45356389]
[1751969732332,0.04430712,2560.3,2560.2,5.56356389]
[1751969732534,0.04430712,2560.3,2560.2,11.49362333]
[1751969732735,0.04430712,2560.3,2560.2,11.45456389]
[1751969733113,0.04430712,2560.3,2560.2,5.56356389]
[1751969733312,0.04430712,2560.3,2560.2,11.49362333]
[1751969733609,0.04430712,2560.3,2560.2,11.45456389]
[1751969734248,0.04430712,2560.3,2560.2,11.45356389]
[1751969740623,0.04630712,2560.3,2560.2,9.99114484]
[1751969744569,0.04630712,2560.3,2560.2,10.80404484]
[1751969744962,0.04630712,2560.3,2560.2,9.99114484]
[1751969750443,0.04630712,2560.3,2559.6,0.001]
[1751969750643,2.45668437,2560.3,2559.7,5.902]
[1751969752324,2.45668437,2560.3,2559.7,9.80870332]
[1751969753469,2.45668437,2560.3,2559.8,5.901]
[1751969753981,2.45668437,2560.3,2559.9,5.901]
[1751969754177,2.45668437,2560.3,2560.0,5.901]
[1751969754483,1.63643439,2560.2,2559.7,3.90670673]
[1751969754681,1.63643439,2560.2,2559.8,5.901]
[1751969754979,1.05113783,2560.3,2559.8,9.84654842]
[1751969755171,0.04630712,2560.3,2559.8,9.80748287]
[1751969755367,0.04630712,2560.3,2559.8,5.901]
[1751969755568,1.45101469,2560.3,2559.8,5.901]
[1751969755768,1.45101469,2560.3,2559.8,9.80755282]
[1751969755982,1.45101469,2560.3,2559.9,3.90639463]
[1751969756204,0.04630712,2560.3,2560.0,9.80715388]
[1751969756803,0.04630712,2560.3,2560.0,5.901]
[1751969757686,0.04630712,2560.3,2560.0,9.80723024]
[1751969757887,0.04630712,2560.3,2560.0,5.901]
[1751969759682,0.04630712,2560.3,2559.7,3.90662943]
[1751969759886,6.89178099,2560.3,2559.6,0.001]
[1751969760086,1.40372836,2560.2,2559.6,3.90779891]
[1751969760286,10.0,2560.2,2559.7,5.902]
[1751969760623,2.88437396,2560.1,2559.7,6.0972]
[1751969760820,0.1952,2560.1,2559.7,6.0972]
[1751969761113,0.1952,2560.1,2559.7,10.00383751]
[1751969763112,0.04630712,2560.3,2559.9,3.90633279]
[1751969763304,0.04630712,2560.3,2559.9,6.1012]
[1751969764420,0.04630712,2560.3,2559.9,10.00758922]
[1751969768004,0.04630712,2560.3,2559.9,6.1012]
[1751969768404,0.04630712,2560.3,2559.9,10.00760208]
[1751969768605,0.04630712,2560.3,2559.9,6.1012]
[1751969769541,0.60156941,2560.3,2559.9,6.1012]
[1751969769735,1.44993009,2560.3,2559.9,6.1012]
[1751969769916,0.04630712,2560.3,2559.9,6.1012]
[1751969770533,0.04630712,2560.3,2559.9,10.00758924]
[1751969771853,0.04630712,2560.3,2559.9,6.1012]
[1751969772162,0.04630712,2560.3,2560.1,0.1952]
[1751969773131,0.00325922,2560.3,2560.1,0.1952]
[1751969774168,0.00325922,2560.3,2560.1,4.10129663]
[1751969775034,0.00325922,2560.3,2560.1,0.1952]
[1751969775340,0.1952,2560.1,2559.6,6.1002]
[1751969775563,0.1952,2560.0,2559.6,0.1962]
[1751969777037,13.9060746,2560.2,2559.6,0.001]
[1751969777269,0.1952,2559.9,2559.6,0.001]
[1751969779478,0.74581133,2559.9,2559.6,0.001]
[1751969780157,0.1952,2559.9,2559.6,0.001]
[1751969783602,5.3125795,2560.0,2559.6,0.001]
[1751969783804,10.0,2559.7,2559.6,0.001]
[1751969784096,1.40627038,2559.7,2559.6,0.001]
[1751969785697,1.69874106,2559.7,2559.6,0.001]
[1751969785989,1.40627038,2559.7,2559.6,0.001]
[1751969786198,1.40627038,2559.9,2559.6,0.001]
[1751969786405,10.0,2559.8,2559.6,0.001]
[1751969789370,10.29387026,2559.8,2559.6,0.001]
[1751969790616,0.29387026,2559.8,2559.6,0.001]
[1751969790912,10.0,2559.8,2559.6,0.001]
[1751969791110,11.9471203,2559.8,2559.6,0.001]
[1751969793808,10.0,2559.8,2559.6,0.001]
[1751969794211,10.0,2559.8,2559.6,0.1962]
[1751969795415,10.0,2559.8,2559.6,4.10303762]
[1751969795721,5.912,2560.0,2559.7,3.90661798]
[1751969797324,1.40472899,2559.9,2559.7,3.90661798]
[1751969797928,10.1952,2560.1,2559.7,3.90661798]
[1751969797929,10.0,2560.1,2559.7,1.70151285]
[1751969798130,1.4046357,2560.0,2559.8,0.1952]
[1751969802127,1.4046357,2560.0,2559.6,0.001]
[1751969802435,0.1952,2559.9,2559.6,0.001]
[1751969802631,1.5998357,2559.9,2559.6,0.001]
[1751969803208,7.3206357,2560.0,2559.8,0.7787]
[1751969803414,5.916,2560.0,2559.8,4.88045519]
[1751969803609,10.0,2560.1,2559.8,4.88045519]
[1751969803813,1.40567638,2560.0,2559.8,4.68525519]
[1751969804014,1.40567638,2560.0,2559.9,0.1952]
[1751969806138,1.40767638,2560.0,2559.9,0.1952]
[1751969806921,1.40767638,2560.0,2559.7,4.10190616]
[1751969809622,1.40767638,2560.0,2559.7,0.1952]
[1751969809822,1.40767638,2560.0,2559.7,4.10190419]
[1751969811171,1.40767638,2560.0,2559.7,0.1952]
[1751969813569,1.40767638,2560.0,2559.7,4.10190565]
[1751969816254,1.40767638,2560.0,2559.8,3.90648868]
[1751969816463,1.40767638,2560.0,2559.9,4.72280259]
[1751969816641,0.002,2560.0,2559.9,4.72280259]
[1751969816840,0.002,2560.0,2559.9,10.64680259]
[1751969817165,0.002,2560.0,2559.9,10.64780259]
[1751969818228,0.002,2560.0,2559.9,4.72280259]
[1751969818462,0.002,2560.0,2559.9,10.64780259]
[1751969818867,0.002,2560.0,2559.9,10.64680259]
[1751969819162,0.002,2560.0,2559.9,4.72280259]
[1751969819332,0.002,2560.0,2559.9,10.64680259]
[1751969820874,0.002,2560.0,2559.9,12.24593762]
[1751969821242,0.002,2560.0,2559.9,6.32193762]
[1751969821446,0.002,2560.0,2559.9,12.28500164]
[1751969821672,0.002,2560.0,2559.9,12.24593762]
[1751969821981,0.002,2560.0,2559.9,13.68493762]
[1751969822166,0.00325922,2560.3,2559.9,13.68493762]
[1751969822167,0.00325922,2560.3,2560.2,3.90594484]
[1751969822354,0.00325922,2560.3,2560.2,11.40172376]
[1751969822557,0.00325922,2560.3,2560.2,11.36266432]
[1751969823358,1e-08,2560.3,2560.2,11.36266432]
[1751969823572,1e-08,2560.3,2560.2,11.91266432]
[1751969824578,1e-08,2560.4,2560.3,4.71729228]
[1751969824776,1e-08,2560.4,2560.3,15.27057113]
[1751969825580,0.0475751,2560.7,2560.6,4.73213468]
[1751969825581,1e-08,2560.7,2560.6,4.73213468]
[1751969825779,1e-08,2560.7,2560.6,12.09813468]
[1751969825983,1e-08,2560.7,2560.6,12.64813468]
[1751969826281,1e-08,2560.7,2560.6,14.24726971]
[1751969826581,1e-08,2560.7,2560.6,14.44346971]
[1751969826744,1e-08,2560.7,2560.6,6.52646971]
[1751969827170,1e-08,2560.7,2560.6,13.89346971]
[1751969827686,1e-08,2560.7,2560.6,6.52646971]
[1751969827895,1e-08,2560.7,2560.6,1.6332]
[1751969828061,1e-08,2560.7,2560.6,11.46953468]
[1751969828595,1e-08,2560.7,2560.6,10.03153468]
[1751969829171,1e-08,2560.7,2560.6,6.1262]
[1751969829355,1e-08,2560.7,2560.6,10.03153468]
[1751969830000,1e-08,2560.7,2560.6,4.10053468]
[1751969830201,1e-08,2560.7,2560.6,10.78223468]
[1751969830496,0.00200001,2560.7,2560.6,10.78223468]
[1751969831312,0.00200001,2560.7,2560.6,11.33223468]
[1751969831656,1e-08,2560.7,2560.6,11.33223468]
[1751969833960,1e-08,2560.7,2560.6,12.77823468]
[1751969834160,1e-08,2560.7,2560.6,14.44660477]
[1751969836204,1e-08,2560.7,2560.6,24.44660477]
[1751969839279,0.0722866,2561.5,2561.4,4.68611493]
[1751969839479,0.0722866,2561.5,2561.4,12.06011493]
[1751969839703,0.0722866,2561.5,2561.4,12.25451493]
[1751969839900,0.0722866,2561.5,2561.4,12.96649935]
[1751969840370,0.0722866,2561.5,2561.4,13.51649935]
[1751969840566,0.0722866,2561.5,2561.4,6.14249935]
[1751969840779,0.0722866,2561.5,2561.4,13.51549935]
[1751969841012,0.0722866,2561.5,2561.4,13.51949935]
[1751969841466,0.0722866,2561.5,2561.4,5.59249935]
[1751969841664,0.0722866,2561.5,2561.4,12.96849935]
[1751969842099,0.0722866,2561.5,2561.4,6.25549935]
[1751969842268,0.0722866,2561.5,2561.4,11.47451493]
[1751969842472,0.0722866,2561.5,2561.4,11.47651493]
[1751969844707,0.0722866,2561.5,2561.4,11.47551493]
[1751969847219,0.0722866,2561.5,2561.4,4.09851493]
[1751969847510,0.0722866,2561.5,2561.4,10.02851493]
[1751969850688,0.0722866,2561.5,2561.4,11.2937782]
[1751969850889,0.0722866,2561.5,2561.4,12.1236782]
[1751969851788,0.0722866,2561.5,2561.4,12.7427782]
[1751969852512,0.0722866,2561.5,2561.4,4.09851493]
[1751969852714,0.0722866,2561.5,2561.4,11.47751493]
[1751969852886,0.0742866,2561.5,2561.4,11.47651493]
[1751969854219,0.0742866,2561.5,2561.4,4.09851493]
[1751969854398,0.0742866,2561.5,2561.4,10.03251493]
[1751969857509,0.0742866,2561.5,2561.4,10.03051493]
[1751969861009,0.0742866,2561.5,2561.4,0.1944]
[1751969861215,0.0742866,2561.5,2561.4,10.02851493]
[1751969861611,0.0742866,2561.5,2560.9,5.35084248]
[1751969861791,0.0742866,2561.5,2561.1,4.0997664]
[1751969861996,0.0742866,2561.5,2561.2,5.931]
[1751969863112,0.0742866,2561.5,2561.2,9.83541579]
[1751969863797,0.0742866,2561.5,2561.2,5.931]
[1751969864443,0.0742866,2561.5,2560.8,5.35092982]
[1751969864720,0.1952,2561.4,2561.0,0.1952]
[1751969864934,1.61253042,2561.4,2561.1,5.931]
[1751969867635,0.1952,2561.4,2561.1,5.931]
[1751969870126,0.1952,2561.4,2561.1,5.929]
[1751969872040,0.1952,2561.2,2561.0,5.928]
[1751969873317,0.1952,2561.2,2560.8,4.10013955]
[1751969873517,0.1952,2561.2,2560.9,5.928]
[1751969874655,0.1952,2561.2,2560.8,4.10022247]
[1751969874656,0.1952,2561.2,2560.8,0.1952]
[1751969874838,10.0,2561.3,2560.8,5.927]
[1751969875151,0.1952,2561.1,2560.8,9.83194194]
[1751969875729,10.0,2561.3,2560.9,3.9047651]
[1751969876041,10.1952,2561.3,2560.8,10.02714687]
[1751969876249,10.1952,2561.3,2560.9,3.9048583]
[1751969876432,10.1952,2561.3,2561.0,3.90463176]
[1751969876634,10.0,2561.3,2561.1,3.90453937]
[1751969876834,0.0742866,2561.5,2561.3,3.90426736]
[1751969877040,0.0742866,2561.5,2561.4,3.90411493]
[1751969878111,0.0742866,2561.5,2561.3,4.09942507]
[1751969878326,0.0742866,2561.5,2561.3,0.1952]
[1751969878856,0.0742866,2561.5,2561.3,4.09945645]
[1751969879444,0.0742866,2561.5,2561.4,3.90411493]
[1751969879949,0.0742866,2561.5,2561.3,4.09938924]
[1751969880326,0.0742866,2561.5,2561.4,3.90411493]
[1751969880531,0.0742866,2561.5,2561.3,4.09934113]
[1751969880930,0.0742866,2561.5,2561.4,5.928]
[1751969881333,0.0742866,2561.5,2561.4,9.83211493]
[1751969881540,0.0742866,2561.5,2561.4,11.22526054]
[1751969882949,0.0742866,2561.5,2561.4,11.41966054]
[1751969888187,0.0742866,2561.5,2561.4,12.22176054]
[1751969890475,0.0742866,2561.5,2561.4,10.02351493]
[1751969891153,0.0742866,2561.5,2561.4,3.90411493]
[1751969891468,0.0742866,2561.5,2561.4,9.82911493]
[1751969895232,0.0742866,2561.5,2561.4,10.58021493]
[1751969899575,0.0742866,2561.5,2561.4,11.13021493]
[1751969899951,0.0742866,2561.5,2561.4,12.77795054]
[1751969900569,1e-08,2561.5,2561.4,12.77795054]
[1751969901149,1e-08,2561.5,2561.4,12.97235054]
[1751969903279,1e-08,2561.5,2561.4,22.97235054]
[1751969903478,1e-08,2561.5,2561.4,25.29527475]
[1751969905182,0.0722866,2562.4,2561.4,25.29527475]
[1751969905183,0.0722866,2562.4,2562.3,4.72354362]
[1751969905388,0.0722866,2562.4,2562.3,12.95118442]
[1751969905682,0.0722866,2562.4,2562.3,13.14558442]
[1751969912697,0.0722866,2562.4,2562.3,13.14458442]
[1751969914007,0.0722866,2562.4,2562.3,5.78058442]
[1751969914508,0.0722866,2562.4,2562.3,11.46014362]
[1751969915076,0.0722866,2562.4,2562.3,4.09714362]
[1751969915275,0.0722866,2562.4,2562.3,0.1944]
[1751969915524,4.16933202,2562.4,2562.1,5.922]
[1751969915829,4.09753719,2562.1,2561.6,0.1944]
[1751969915984,10.40975372,2562.0,2561.6,5.925]
[1751969916183,0.1944,2561.9,2561.6,5.925]
[1751969916783,10.0,2561.7,2561.0,2.2202]
[1751969916989,10.1944,2561.7,2561.2,0.1952]
[1751969917499,0.1944,2561.7,2561.2,0.1952]
[1751969917895,0.1944,2561.7,2561.3,5.925]
[1751969918720,0.1944,2561.7,2561.3,9.82926054]
[1751969919092,4.31295619,2562.0,2561.3,5.925]
[1751969919093,0.40975372,2562.0,2561.3,5.925]
[1751969919290,1.23537537,2561.9,2561.5,0.1944]
[1751969919704,0.1944,2561.9,2561.5,0.1944]
[1751969920627,0.0742866,2562.4,2561.7,3.9035402]
[1751969920826,10.0742866,2562.4,2561.8,9.82943429]
[1751969921032,0.0742866,2562.4,2561.8,9.82943429]
[1751969921760,0.0742866,2562.4,2561.9,3.90334238]
[1751969921919,1.61189178,2562.4,2562.0,5.928]
[1751969923665,11.61189178,2562.4,2562.0,5.928]
[1751969923822,10.0,2562.2,2562.0,5.928]
[1751969924019,10.0,2562.2,2561.8,5.927]
[1751969924228,10.0,2562.2,2561.6,3.90372791]
[1751969924466,1.39027625,2562.1,2561.7,5.927]
[1751969924668,1.39027625,2562.1,2561.5,3.90387824]
[1751969924868,3.9029992,2562.2,2561.6,5.927]
[1751969925554,10.0,2562.2,2561.6,9.83077556]
[1751969925961,10.0,2562.2,2561.6,5.927]
[1751969926336,13.90293486,2562.2,2561.6,5.927]
[1751969927954,7.9642866,2562.4,2561.6,5.927]
[1751969928155,0.79642866,2562.3,2561.7,3.90358564]
[1751969929153,10.79642866,2562.3,2561.7,3.90358564]
[1751969930258,10.79642866,2562.3,2561.8,3.90350405]
[1751969930755,0.1944,2562.2,2561.8,0.1944]
[1751969932167,10.79642866,2562.3,2561.5,9.83181413]
[1751969932168,14.69925186,2562.3,2561.5,9.83181413]
[1751969932483,10.0,2562.0,2561.6,0.1944]
[1751969932800,1.01944,2561.9,2561.6,0.1944]
[1751969933287,10.0,2561.8,2561.6,0.1944]
[1751969933445,1.21384,2561.9,2561.5,0.1944]
[1751969935484,0.1944,2561.9,2561.5,0.1944]
[1751969935685,0.1944,2561.9,2561.6,3.90378098]
[1751969936176,0.1944,2561.9,2561.5,4.09827623]
[1751969936971,0.1944,2561.9,2561.5,0.1944]
[1751969938364,0.1944,2561.9,2561.5,4.09825619]
[1751969938781,0.1944,2561.9,2561.5,4.09828487]
[1751969939095,1.80654,2561.9,2561.5,0.1944]
[1751969939803,4.09797037,2561.8,2561.3,0.1952]
[1751969940868,4.09790689,2561.8,2561.3,0.1952]
[1751969941079,0.1944,2561.8,2561.3,0.1952]
[1751969941392,10.0,2562.0,2561.4,3.9040542]
[1751969941596,10.0,2562.0,2561.5,0.1944]
[1751969941597,0.1944,2561.9,2561.5,0.1944]
[1751969943069,0.1944,2561.9,2561.5,4.09834841]
[1751969943468,0.1944,2561.9,2561.6,4.7320055]
[1751969943669,0.1944,2561.9,2561.6,0.8282]
[1751969944893,0.1944,2561.9,2561.5,0.1944]
[1751969945196,1.80744,2561.9,2561.5,0.1944]
[1751969945392,1.80744,2561.9,2561.5,4.09832482]
[1751969946071,1.80744,2561.9,2561.5,0.1944]
[1751969946264,1.80744,2561.9,2561.5,4.09834172]
[1751969947111,1.80744,2561.9,2561.5,0.1944]
[1751969947271,0.1944,2561.7,2561.3,0.1952]
[1751969948222,2.58515773,2561.8,2561.0,0.7859]
[1751969948420,0.1952,2561.4,2561.0,0.1952]
[1751969948616,0.1952,2561.3,2561.0,5.935]
[1751969948978,0.1952,2561.3,2560.8,2.3931]
[1751969948979,10.1952,2561.3,2560.8,2.3931]
[1751969949216,0.1952,2561.3,2560.8,0.1952]
[1751969949400,3.9048133,2561.0,2560.6,0.001]
[1751969949579,0.1952,2560.8,2560.6,0.001]
[1751969950214,4.10030809,2560.8,2560.6,0.001]
[1751969950378,13.90518217,2560.7,2560.6,0.001]
[1751969950713,16.28000602,2560.7,2560.6,0.001]
[1751969951318,12.37482385,2560.7,2560.6,0.001]
[1751969952600,10.0,2560.7,2560.6,0.001]
[1751969954704,21.877,2560.7,2560.6,0.001]
[1751969956203,22.0722,2560.7,2560.6,0.001]
[1751969958281,10.1952,2560.7,2560.6,0.001]
[1751969959220,0.1952,2560.7,2560.6,3.90633468]
[1751969959410,6.1322,2560.9,2560.7,3.90512196]
[1751969959727,7.89,2561.2,2560.9,3.90483221]
[1751969960022,8.0852,2561.2,2561.0,3.90466126]
[1751969960520,1.449,2561.4,2561.3,3.90426736]
[1751969960819,10.1952,2561.5,2561.1,3.90448468]
[1751969961021,10.1952,2561.5,2561.1,3.90442202]
[1751969961220,1.39919663,2561.4,2561.1,3.90446116]
[1751969961426,1.39919663,2561.4,2561.2,3.90440313]
[1751969961595,10.1952,2561.5,2561.2,3.90440313]
[1751969963619,10.1952,2561.5,2561.2,3.90438993]
[1751969965334,10.1952,2561.5,2561.1,3.90452261]
[1751969966012,10.1952,2561.5,2561.0,0.1952]
[1751969966210,5.935,2561.4,2561.1,3.90448021]
[1751969966527,5.935,2561.4,2561.2,3.90434919]
[1751969967846,10.1952,2561.5,2561.0,0.88454]
[1751969967847,0.1952,2561.5,2561.3,3.90426736]
[1751969968035,5.934,2561.6,2561.1,0.8154]
[1751969968235,0.1944,2561.7,2561.2,0.1952]
[1751969968435,6.1284,2561.7,2561.5,3.90385759]
[1751969969240,0.1944,2561.7,2561.6,3.90381011]
[1751969970270,7.892,2561.8,2561.7,3.90365772]
[1751969970475,7.892,2561.8,2561.4,0.1944]
[1751969970763,10.0,2561.6,2561.2,0.1952]
[1751969971052,10.0,2561.6,2560.7,5.35418034]
[1751969971053,0.1952,2561.2,2560.8,3.90494023]
[1751969971632,10.0,2561.0,2560.6,0.001]
[1751969971843,7.32846031,2560.9,2560.6,0.001]
[1751969972168,10.0,2560.8,2560.6,0.001]
[1751969973038,25.78718217,2560.7,2560.6,0.001]
[1751969973263,27.23618217,2560.7,2560.6,0.001]
[1751969974067,29.18774482,2560.7,2560.6,0.001]
[1751969974238,31.23450783,2560.7,2560.6,1e-08]
[1751969974439,3.90625,2560.0,2559.6,0.001]
[1751969974646,27.25725,2560.0,2559.6,0.001]
[1751969975156,25.80825,2560.0,2559.6,0.001]
[1751969975355,28.77968588,2560.0,2559.6,0.001]
[1751969975528,30.22868588,2560.0,2559.6,0.001]
[1751969975726,28.77968588,2560.0,2559.6,0.001]
[1751969975956,30.22868588,2560.0,2559.6,0.001]
[1751969976521,26.32243588,2560.0,2559.6,0.001]
[1751969976934,27.72304983,2560.0,2559.6,0.001]
[1751969977260,35.62929983,2560.0,2559.6,0.001]
[1751969977460,31.72304983,2560.0,2559.6,0.001]
[1751969977964,35.62929983,2560.0,2559.6,0.001]
[1751969978369,31.72304983,2560.0,2559.6,0.001]
[1751969978560,30.32243588,2560.0,2559.6,0.001]
[1751969978749,18.37085866,2560.0,2559.6,0.001]
[1751969978950,22.92443588,2560.0,2559.6,0.001]
[1751969979654,18.92443588,2560.0,2559.6,0.001]
[1751969981167,22.83068588,2560.0,2559.6,0.001]
[1751969982078,18.92443588,2560.0,2559.6,0.001]
[1751969982786,15.952,2560.0,2559.6,0.7571]
[1751969983686,15.952,2560.0,2559.6,4.66395004]